bitfinex/quotes_SOLUSD_20240712
["timestamp","ask_amount","ask_price","bid_price","bid_amount"]
[1720798334100,7.1727,139.42,139.37,7.1747]
[1720798334504,45.0,139.43,139.38,7.1745]
[1720798335302,7.1729,139.42,139.35,6.1249]
[1720798335487,7.1729,139.42,139.38,7.1746]
[1720798336028,52.1722,139.43,139.35,6.1249]
[1720798336417,7.1726,139.42,139.38,7.1744]
[1720798336620,7.1726,139.42,139.35,6.1249]
[1720798336621,7.1719,139.44,139.39,7.1739]
[1720798336919,7.1725,139.43,139.39,7.1739]
[1720798337293,7.1726,139.42,139.38,7.1744]
[1720798338397,7.1731,139.41,139.37,7.1749]
[1720798338611,7.1742,139.39,139.35,6.1249]
[1720798339008,7.1737,139.4,139.35,6.1249]
[1720798339317,7.1737,139.4,139.33,16.1204]
[1720798339719,7.1737,139.4,139.36,7.1755]
[1720798339924,7.1741,139.39,139.35,7.176]
[1720798341803,7.1737,139.4,139.36,7.1756]
[1720798342827,7.1741,139.39,139.35,7.176]
[1720798343113,7.1746,139.38,139.34,7.1766]
[1720798343822,7.1746,139.38,139.35,7.1761]
[1720798344019,7.1746,139.38,139.32,6.6639]
[1720798344211,10.0,139.4,139.29,16.3542775]
[1720798344412,45.0,139.39,139.29,16.3542775]
[1720798344636,7.1754,139.37,139.33,7.177]
[1720798345322,7.1759,139.36,139.32,7.1772]
[1720798346319,7.1751,139.38,139.34,7.1765]
[1720798346627,7.1749,139.38,139.34,7.1764]
[1720798347323,7.1751,139.37,139.33,7.177]
[1720798347509,7.1747,139.38,139.34,7.1766]
[1720798348301,7.1752,139.37,139.29,16.3542775]
[1720798348506,16.0793,139.41,139.37,7.1749]
[1720798348699,16.0793,139.41,139.3,65.0]
[1720798348700,10.0,139.41,139.3,65.0]
[1720798349003,7.1741,139.39,139.35,7.1759]
[1720798349218,7.1752,139.37,139.33,7.1768]
[1720798350315,7.1744,139.39,139.35,7.1761]
[1720798350502,7.1744,139.39,139.3,20.0]
[1720798350899,7.1744,139.39,139.35,7.176]
[1720798351102,7.1737,139.4,139.36,7.1753]
[1720798351319,7.1732,139.41,139.37,7.1751]
[1720798351507,52.1736,139.4,139.3,20.0]
[1720798351711,52.1736,139.4,139.36,7.1754]
[1720798351908,7.1731,139.41,139.37,7.1751]
[1720798352111,7.1731,139.41,139.37,7.1749]
[1720798352308,7.1731,139.41,139.3,20.0]
[1720798352309,7.1737,139.4,139.36,7.1755]
[1720798352529,7.1741,139.39,139.36,7.1755]
[1720798352845,27.9302,139.43,139.3,20.0]
[1720798353006,27.9331,139.41,139.3,20.0]
[1720798353201,7.1747,139.38,139.34,7.1763]
[1720798353410,7.1752,139.37,139.3,20.0]
[1720798353608,7.1752,139.37,139.33,7.177]
[1720798354021,10.0,139.39,139.29,16.3542775]
[1720798354022,27.9353,139.39,139.29,0.8479775]
[1720798354228,7.1757,139.36,139.32,7.1776]
[1720798354518,66.6466,139.38,139.32,7.1776]
[1720798355031,7.1758,139.36,139.32,7.1776]
[1720798356530,7.1762,139.35,139.32,7.1776]
[1720798356730,7.1762,139.35,139.31,7.178]
[1720798357225,7.1767,139.34,139.3,7.1786]
[1720798357426,7.1772,139.33,139.29,0.8479775]
[1720798357615,7.1769,139.34,139.3,7.1787]
[1720798358217,27.9378,139.37,139.29,8.0270775]
[1720798358218,10.0,139.35,139.29,8.0270775]
[1720798358417,7.1777,139.32,139.29,0.8479775]
[1720798359236,7.1782,139.31,139.29,0.8479775]
[1720798359527,17.9404,139.35,139.29,0.8479775]
[1720798359736,10.0,139.33,139.29,0.8479775]
[1720798360121,45.0,139.32,139.29,0.8479775]
[1720798360529,10.0,139.36,139.29,0.8479775]
[1720798360713,7.1785,139.31,139.29,0.8479775]
[1720798361233,7.1787,139.3,139.29,0.8479775]
[1720798361635,17.9418,139.34,139.29,0.8479775]
[1720798361822,7.1779,139.32,139.29,0.8479775]
[1720798362018,35.8718,139.39,139.29,0.8479775]
[1720798362019,27.9385,139.37,139.29,0.8479775]
[1720798362224,7.1765,139.35,139.31,7.1779]
[1720798362830,7.1767,139.34,139.29,0.8479775]
[1720798363032,10.0,139.34,139.29,0.8479775]
[1720798363336,7.1773,139.33,139.29,0.8479775]
[1720798363544,7.1769,139.34,139.29,0.8479775]
[1720798363743,7.1769,139.34,139.3,7.1783]
[1720798363942,10.0,139.35,139.29,0.8479775]
[1720798364245,7.178,139.32,139.29,0.8479775]
[1720798364845,7.1783,139.31,139.29,0.8479775]
[1720798365139,52.1787,139.3,139.29,0.8479775]
[1720798365350,7.1801,139.28,139.23,7.1819]
[1720798365553,7.1801,139.28,139.22,21.7017]
[1720798365554,7.1801,139.28,139.24,7.1817]
[1720798365731,7.1806,139.27,139.23,7.1822]
[1720798366836,7.1793,139.29,139.25,7.1812]
[1720798367429,7.1798,139.28,139.24,7.1816]
[1720798367732,45.0,139.3,139.24,7.1816]
[1720798368037,45.0,139.3,139.23,7.1822]
[1720798368463,51.0293,139.3,139.23,7.1822]
[1720798368747,10.0,139.29,139.22,7.1827]
[1720798368921,45.0,139.28,139.22,7.1827]
[1720798369124,7.181,139.26,139.23,7.1822]
[1720798369347,7.181,139.26,139.22,7.1827]
[1720798369818,7.1814,139.25,139.21,25.1406]
[1720798370041,7.182,139.24,139.21,17.9574]
[1720798370229,27.9524,139.26,139.19,7.1843]
[1720798370436,45.0,139.25,139.19,7.1843]
[1720798370752,7.1831,139.22,139.18,7.1849]
[1720798371734,7.1836,139.21,139.18,17.9618]
[1720798372242,7.1836,139.21,139.17,7.1853]
[1720798372448,7.1847,139.19,139.15,25.9992775]
[1720798372746,7.1835,139.21,139.17,7.1854]
[1720798373250,7.1845,139.19,139.15,25.9993775]
[1720798373830,7.1849,139.18,139.15,18.8130775]
[1720798374146,7.1846,139.19,139.15,25.9994775]
[1720798374350,7.1849,139.18,139.15,18.8130775]
[1720798375224,7.1845,139.19,139.15,25.9994775]
[1720798375645,27.9573,139.22,139.15,25.9994775]
[1720798375854,7.185,139.18,139.15,18.8130775]
[1720798376235,7.185,139.18,139.15,0.8479775]
[1720798376436,27.9573,139.22,139.15,0.8479775]
[1720798376437,10.0,139.22,139.15,0.8479775]
[1720798376638,7.1842,139.2,139.16,7.1858]
[1720798376849,7.1837,139.21,139.17,7.1853]
[1720798377032,15.606,139.24,139.19,17.96]
[1720798377238,7.1829,139.22,139.19,17.96]
[1720798377536,7.1829,139.22,139.18,7.1847]
[1720798377930,10.0,139.26,139.15,0.8479775]
[1720798378179,7.1813,139.25,139.21,7.1832]
[1720798378459,7.1811,139.26,139.22,7.1824]
[1720798379337,15.4118,139.28,139.2,17.9596]
[1720798379860,7.1809,139.26,139.22,25.1395]
[1720798380159,15.4118,139.28,139.22,17.9569]
[1720798380364,15.4118,139.28,139.16,22.1147]
[1720798380365,6.1206,139.31,139.24,17.954]
[1720798380536,7.1768,139.34,139.3,17.9464]
[1720798380741,7.1763,139.35,139.3,25.1251]
[1720798380933,16.3,139.36,139.3,17.9464]
[1720798381141,7.175,139.38,139.33,7.177]
[1720798381342,7.1756,139.36,139.32,17.9436]
[1720798381639,25.9079,139.4,139.25,71.4148]
[1720798381640,10.0,139.37,139.25,71.4148]
[1720798382041,7.1767,139.34,139.29,7.1788]
[1720798382246,7.1767,139.34,139.3,7.1787]
[1720798383258,7.1772,139.33,139.29,7.1792]
[1720798383754,10.0,139.35,139.25,26.4148]
[1720798383939,45.0,139.34,139.25,26.4148]
[1720798384333,17.9388,139.37,139.25,26.4148]
[1720798384541,7.1761,139.35,139.3,7.1782]
[1720798384947,7.1767,139.34,139.3,7.1782]
[1720798385252,7.1758,139.36,139.32,7.1774]
[1720798385456,7.1755,139.37,139.32,7.1775]
[1720798385759,7.1758,139.36,139.32,7.1775]
[1720798386158,7.1758,139.36,139.31,7.178]
[1720798386342,7.1762,139.35,139.31,7.178]
[1720798386746,7.1769,139.34,139.3,7.1786]
[1720798386950,7.1774,139.33,139.28,7.1793]
[1720798387261,7.1758,139.36,139.31,7.1777]
[1720798387455,7.1758,139.36,139.32,7.1776]
[1720798387667,7.1763,139.35,139.25,26.4148]
[1720798387840,7.1763,139.35,139.3,7.1783]
[1720798388159,7.1767,139.34,139.3,7.1783]
[1720798388469,7.1772,139.33,139.29,7.1792]
[1720798388643,7.1774,139.33,139.29,7.1789]
[1720798388843,7.1774,139.33,139.25,26.4148]
[1720798388844,17.9398,139.36,139.25,26.4148]
[1720798389051,7.1768,139.34,139.3,7.1786]
[1720798389442,7.1772,139.33,139.29,7.1792]
[1720798389643,49.506,139.39,139.25,26.4148]
[1720798389860,7.1758,139.36,139.25,26.4148]
[1720798390080,7.1758,139.36,139.26,45.0]
[1720798390248,7.1751,139.37,139.27,20.0]
[1720798390561,7.1756,139.36,139.32,7.1775]
[1720798390749,7.1753,139.37,139.32,7.1775]
[1720798390952,7.1753,139.37,139.33,7.1771]
[1720798391156,7.1757,139.36,139.32,7.1776]
[1720798391467,7.1757,139.36,139.31,7.178]
[1720798391660,7.1757,139.36,139.32,7.1777]
[1720798392366,7.1767,139.34,139.3,7.1786]
[1720798392552,17.9372,139.38,139.31,7.1781]
[1720798392553,7.1762,139.35,139.31,7.1781]
[1720798392862,7.1768,139.34,139.3,7.1786]
[1720798393266,7.1762,139.35,139.31,7.1781]
[1720798393566,7.1757,139.36,139.32,7.1775]
[1720798394267,7.1757,139.36,139.27,20.0]
[1720798394561,7.1765,139.35,139.31,7.178]
[1720798394955,7.1774,139.33,139.28,7.1793]
[1720798395161,7.1782,139.31,139.27,7.1799]
[1720798395458,7.1798,139.28,139.24,7.1814]
[1720798395661,45.0,139.3,139.21,6.4477]
[1720798395866,7.1807,139.27,139.21,6.4477]
[1720798396047,7.1807,139.27,139.23,7.1823]
[1720798396242,10.0,139.27,139.17,6.4477]
[1720798396471,30.0,139.25,139.22,7.1827]
[1720798396846,37.1815,139.25,139.21,17.9574]
[1720798397058,30.0,139.25,139.22,7.1824]
[1720798398261,30.0,139.25,139.23,17.9556]
[1720798398866,30.0,139.25,139.22,7.1823]
[1720798399058,30.0,139.25,139.22,7.1828]
[1720798399653,30.0,139.25,139.21,7.1832]
[1720798400055,37.1814,139.25,139.21,7.1832]
[1720798400253,37.1813,139.25,139.2,17.9589]
[1720798400458,30.0,139.25,139.22,17.9568]
[1720798400865,30.0,139.25,139.24,7.1818]
[1720798401065,30.0,139.25,139.23,7.1822]
[1720798401266,7.1821,139.24,139.2,7.1837]
[1720798401458,30.0,139.23,139.2,7.1837]
[1720798401655,30.0,139.23,139.17,6.4477]
[1720798401973,30.0,139.23,139.21,17.9578]
[1720798402155,30.0,139.23,139.21,25.1407]
[1720798402357,30.0,139.23,139.21,17.9578]
[1720798402955,30.0,139.23,139.18,17.9614]
[1720798403175,37.1823,139.23,139.19,7.1842]
[1720798403377,30.0,139.23,139.17,6.4477]
[1720798403565,30.0,139.23,139.2,7.1835]
[1720798403761,30.0,139.23,139.22,7.1828]
[1720798404073,30.0,139.23,139.21,7.1832]
[1720798404655,30.0,139.23,139.22,7.1828]
[1720798404955,30.0,139.23,139.21,7.1832]
[1720798405160,7.1811,139.26,139.22,7.1825]
[1720798405466,7.1813,139.25,139.21,7.1832]
[1720798405665,7.1819,139.24,139.2,25.1432]
[1720798406270,7.1829,139.22,139.18,7.1847]
[1720798406457,7.1825,139.23,139.19,7.1843]
[1720798406657,7.182,139.24,139.2,7.1838]
[1720798406974,7.1825,139.23,139.19,25.1452]
[1720798407280,7.1832,139.22,139.18,7.1848]
[1720798407468,7.1825,139.23,139.19,7.1843]
[1720798408367,7.183,139.22,139.19,7.1843]
[1720798408569,7.182,139.24,139.2,7.1838]
[1720798408789,30.0,139.21,139.17,6.4477]
[1720798409081,30.0,139.21,139.2,7.1839]
[1720798409274,30.0,139.21,139.2,25.1435]
[1720798409661,10.0,139.26,139.2,25.1434]
[1720798409987,7.182,139.24,139.2,25.1433]
[1720798410171,7.1826,139.23,139.19,7.1842]
[1720798410493,7.1829,139.22,139.19,7.1842]
[1720798410666,7.1825,139.23,139.19,7.1842]
[1720798412287,7.182,139.24,139.2,7.1838]
[1720798412581,37.1834,139.21,139.18,7.1849]
[1720798412783,30.0,139.21,139.18,7.1849]
[1720798413291,30.0,139.21,139.18,25.1472]
[1720798413792,37.1834,139.21,139.18,25.1472]
[1720798413965,37.1834,139.21,139.18,17.9623]
[1720798414167,7.1842,139.2,139.14,6.0962]
[1720798414366,37.1842,139.2,139.14,6.0962]
[1720798414665,30.0,139.2,139.14,6.0962]
[1720798414874,30.0,139.2,139.17,7.1851]
[1720798415276,30.0,139.2,139.14,6.0962]
[1720798415762,30.0,139.2,139.18,7.1846]
[1720798415961,30.0,139.2,139.14,6.0962]
[1720798416663,30.0,139.2,139.15,20.8479775]
[1720798416864,30.0,139.2,139.19,7.1844]
[1720798417382,30.0,139.2,139.18,7.1847]
[1720798417580,30.0,139.2,139.17,17.9634]
[1720798418069,37.1839,139.2,139.17,25.1486]
[1720798418782,37.1839,139.2,139.17,17.9634]
[1720798419669,7.1844,139.19,139.16,7.1856]
[1720798419870,30.0,139.18,139.15,8.0341775]
[1720798420868,30.0,139.18,139.16,7.1858]
[1720798421068,30.0,139.18,139.17,7.1854]
[1720798421468,30.0,139.18,139.17,25.149]
[1720798421765,68.6945,139.23,139.19,7.1842]
[1720798421982,30.0,139.2,139.19,7.1842]
[1720798424687,15.1143,139.26,139.23,7.1823]
[1720798424888,30.0,139.24,139.22,7.1825]
[1720798425091,30.0,139.24,139.22,25.1395]
[1720798426190,30.0,139.24,139.23,7.1823]
[1720798426693,30.0,139.24,139.22,25.1396]
[1720798427097,30.0,139.24,139.22,17.957]
[1720798427697,30.0,139.24,139.22,25.1398]
[1720798427876,30.0,139.24,139.23,7.1823]
[1720798428077,30.0,139.24,139.22,25.1397]
[1720798428390,30.0,139.24,139.23,7.1823]
[1720798428988,30.0,139.24,139.22,17.957]
[1720798429687,30.0,139.24,139.22,25.1398]
[1720798430295,30.0,139.24,139.18,6.2043]
[1720798430500,37.1821,139.24,139.19,20.0]
[1720798430679,37.1821,139.24,139.2,7.1835]
[1720798431002,7.1823,139.23,139.19,45.144]
[1720798431212,40.0,139.24,139.15,0.8479775]
[1720798431385,45.0,139.23,139.18,7.1849]
[1720798431579,7.1831,139.22,139.18,7.1849]
[1720798431807,37.1831,139.22,139.19,7.1843]
[1720798431991,37.1831,139.22,139.18,7.1848]
[1720798432183,30.0,139.22,139.18,17.9622]
[1720798432508,30.0,139.22,139.21,7.1833]
[1720798434094,30.0,139.22,139.21,27.1833]
[1720798434283,30.0,139.22,139.21,78.561]
[1720798434484,15.2209,139.3,139.21,71.3777]
[1720798434695,15.2209,139.3,139.24,17.9534]
[1720798434999,15.2209,139.3,139.26,7.1807]
[1720798435182,15.2209,139.3,139.24,17.9534]
[1720798435496,15.2209,139.3,139.2,16.5242]
[1720798435497,27.9484,139.29,139.17,6.2753]
[1720798435702,7.1814,139.25,139.21,7.1832]
[1720798435876,7.1812,139.26,139.22,7.1828]
[1720798436079,7.1821,139.24,139.21,17.9576]
[1720798436279,27.9527,139.26,139.17,6.2753]
[1720798436488,7.1827,139.23,139.19,7.184]
[1720798437011,7.1827,139.23,139.18,25.1458]
[1720798437012,52.1829,139.22,139.18,25.1458]
[1720798437308,7.1841,139.2,139.16,7.1859]
[1720798437791,7.1844,139.19,139.15,25.9992775]
[1720798438187,7.1844,139.19,139.15,18.8129775]
[1720798438494,7.185,139.18,139.15,18.8129775]
[1720798439380,7.1845,139.19,139.15,18.8129775]
[1720798439696,7.1845,139.19,139.15,0.8479775]
[1720798439697,7.1859,139.16,139.15,0.8479775]
[1720798439917,37.1859,139.16,139.15,0.8479775]
[1720798440086,82.1859,139.16,139.15,0.8479775]
[1720798440411,75.0,139.16,139.15,0.8479775]
[1720798440697,37.1859,139.16,139.15,0.8479775]
[1720798441289,30.0,139.16,139.15,0.8479775]
[1720798442400,37.1859,139.16,139.15,0.8479775]
[1720798443103,30.0,139.16,139.15,0.8479775]
[1720798444320,37.1859,139.16,139.15,0.8479775]
[1720798444479,30.0,139.16,139.15,0.8479775]
[1720798444803,30.0,139.16,139.15,8.0343775]
[1720798445185,15.7323,139.21,139.15,8.0343775]
[1720798445186,15.7323,139.21,139.18,25.1459]
[1720798445384,15.7323,139.21,139.18,17.9611]
[1720798445588,22.916,139.21,139.17,7.1854]
[1720798445799,7.1839,139.2,139.16,7.1857]
[1720798446114,15.7323,139.21,139.15,18.8130775]
[1720798446308,7.1837,139.21,139.17,7.1851]
[1720798446514,7.183,139.22,139.18,7.1849]
[1720798446680,6.165,139.24,139.17,17.9633]
[1720798446886,7.1824,139.23,139.19,7.1841]
[1720798447318,7.1818,139.24,139.2,7.1837]
[1720798448003,7.1823,139.23,139.19,25.1441]
[1720798448208,27.955,139.24,139.16,17.9638]
[1720798448522,7.1834,139.21,139.17,7.1853]
[1720798448705,7.184,139.2,139.16,25.1496]
[1720798449404,7.1832,139.22,139.16,17.9638]
[1720798449723,7.1835,139.21,139.16,17.9638]
[1720798449921,7.1835,139.21,139.17,7.185]
[1720798450105,10.0,139.24,139.17,7.1853]
[1720798450419,7.183,139.22,139.18,7.1849]
[1720798450609,7.1835,139.21,139.17,7.1853]
[1720798450793,7.183,139.22,139.18,7.1848]
[1720798450994,45.0,139.21,139.18,7.1848]
[1720798451220,45.0,139.21,139.16,17.9638]
[1720798451699,52.1834,139.21,139.17,7.1852]
[1720798451900,7.1841,139.2,139.16,25.1497]
[1720798452506,52.1835,139.21,139.17,7.1854]
[1720798452908,52.1835,139.21,139.18,7.1849]
[1720798453106,52.1834,139.21,139.18,7.1849]
[1720798453316,7.1831,139.22,139.18,7.1849]
[1720798454233,7.1835,139.21,139.17,7.1853]
[1720798455101,7.183,139.22,139.18,7.1849]
[1720798455322,45.0,139.21,139.18,7.1849]
[1720798456122,45.0,139.21,139.15,0.8479775]
[1720798456123,7.1854,139.17,139.15,0.8479775]
[1720798456300,7.1859,139.16,139.15,0.8479775]
[1720798456497,7.1856,139.17,139.15,0.8479775]
[1720798456903,7.1859,139.16,139.15,0.8479775]
[1720798457313,37.1859,139.16,139.15,0.8479775]
[1720798457493,82.1859,139.16,139.15,0.8479775]
[1720798458229,7.188,139.12,139.08,7.19]
[1720798458722,75.0,139.11,139.07,7.1905]
[1720798459024,7.1897,139.09,139.06,17.9768]
[1720798459202,75.0,139.11,139.06,17.9768]
[1720798459406,7.1892,139.1,139.06,17.9768]
[1720798459600,82.189,139.11,139.06,25.1678]
[1720798459802,52.189,139.11,139.07,7.1905]
[1720798460004,7.1892,139.1,139.06,25.1678]
[1720798460224,7.1898,139.09,139.03,6.4304]
[1720798460509,7.1892,139.1,139.05,7.1913]
[1720798460713,7.1896,139.09,139.05,7.1913]
[1720798461214,45.0,139.11,139.08,7.19]
[1720798461418,45.0,139.11,139.04,17.9801]
[1720798461729,7.1883,139.12,139.03,6.4304]
[1720798461897,7.1883,139.12,139.07,7.1905]
[1720798462805,7.1886,139.11,139.07,7.1905]
[1720798463413,7.1886,139.11,139.06,25.168]
[1720798464022,7.1882,139.12,139.08,7.19]
[1720798464397,27.9665,139.15,139.08,7.19]
[1720798464604,7.1876,139.13,139.08,7.19]
[1720798464803,7.1889,139.11,139.06,25.1677]
[1720798464998,7.1889,139.11,139.07,7.1903]
[1720798465606,45.0,139.14,139.08,7.19]
[1720798465808,7.1881,139.12,139.08,7.19]
[1720798466213,7.1885,139.11,139.07,7.1905]
[1720798466524,45.0,139.14,139.04,7.1921]
[1720798466525,45.0,139.1,139.04,7.1921]
[1720798466723,34.55,139.13,139.03,6.4304]
[1720798466917,7.1897,139.09,139.05,25.1704]
[1720798467231,34.55,139.13,139.07,17.9754]
[1720798467434,7.1878,139.13,139.07,17.9754]
[1720798467727,7.1883,139.12,139.08,7.1899]
[1720798467926,63.8838,139.19,139.09,17.9736]
[1720798468129,7.1868,139.15,139.11,7.1885]
[1720798468920,18.87043209,139.21,139.07,15.5316]
[1720798469118,7.184,139.2,139.15,25.1515]
[1720798469432,7.185,139.18,139.14,7.1867]
[1720798469625,7.1845,139.19,139.15,7.1864]
[1720798470334,7.1851,139.18,139.14,25.1538]
[1720798470530,7.1848,139.19,139.14,7.1868]
[1720798470829,7.1845,139.19,139.15,7.1863]
[1720798471028,7.184,139.2,139.16,7.1859]
[1720798471229,60.7596,139.22,139.13,17.9684]
[1720798471430,10.0,139.2,139.13,17.9684]
[1720798471808,17.9589,139.21,139.13,17.9684]
[1720798472210,10.0,139.2,139.13,17.9684]
[1720798472412,10.0,139.2,139.12,7.1879]
[1720798472413,7.1861,139.16,139.12,7.1878]
[1720798472626,7.1858,139.17,139.12,7.1878]
[1720798472832,7.1858,139.17,139.12,7.1879]
[1720798473016,45.0,139.19,139.12,7.1879]
[1720798473017,7.186,139.16,139.12,7.1879]
[1720798474014,7.1856,139.17,139.12,7.1879]
[1720798474508,45.0,139.19,139.12,7.1879]
[1720798474509,7.1861,139.16,139.12,7.1879]
[1720798474709,7.1865,139.15,139.11,7.1884]
[1720798475123,7.1865,139.15,139.1,25.1608]
[1720798475338,7.1875,139.13,139.09,7.1895]
[1720798475550,55.0,139.12,139.02,0.8479775]
[1720798476038,10.0,139.08,139.02,0.8479775]
[1720798476331,7.1911,139.06,139.02,0.8479775]
[1720798476624,60.3603,139.07,139.02,8.0406775]
[1720798477215,67.551,139.07,139.03,7.1926]
[1720798477431,7.1912,139.06,139.02,8.0409775]
[1720798477622,67.5509,139.07,139.03,7.1924]
[1720798477823,15.3603,139.07,139.02,0.8479775]
[1720798478015,45.0,139.06,139.02,8.0407775]
[1720798478215,22.5513,139.07,139.03,25.1736]
[1720798478421,45.0,139.06,139.03,25.1736]
[1720798478735,22.5514,139.07,139.03,17.9813]
[1720798479043,45.0,139.06,139.03,17.9813]
[1720798479349,52.1913,139.06,139.02,8.0410775]
[1720798479935,52.1913,139.06,139.02,0.8479775]
[1720798480126,45.0,139.06,139.02,8.0409775]
[1720798480330,52.1915,139.06,139.02,0.8479775]
[1720798480527,7.1915,139.06,139.02,8.0410775]
[1720798480931,15.3603,139.07,139.02,0.8479775]
[1720798481237,45.0,139.06,139.02,0.8479775]
[1720798481830,7.1918,139.05,139.02,0.8479775]
[1720798482755,15.3603,139.07,139.02,0.8479775]
[1720798482928,7.1905,139.08,139.03,7.1926]
[1720798483241,10.0,139.08,139.02,8.0410775]
[1720798483449,7.1914,139.06,139.02,26.0234775]
[1720798483818,7.1916,139.06,139.02,18.8303775]
[1720798484149,7.1916,139.05,139.02,18.8303775]
[1720798484322,7.1916,139.05,139.02,0.8479775]
[1720798486425,45.0,139.04,139.02,0.8479775]
[1720798486754,52.1924,139.04,139.02,0.8479775]
[1720798487228,45.0,139.04,139.02,0.8479775]
[1720798488226,52.1923,139.04,139.02,0.8479775]
[1720798491044,25.9397,139.03,138.96,17.9904]
[1720798491229,7.1939,139.01,138.96,25.1863]
[1720798492134,7.1951,138.99,138.93,17.9937]
[1720798492734,45.0,139.0,138.95,17.9918]
[1720798492940,7.1942,139.01,138.96,7.1961]
[1720798493547,7.1942,139.01,138.97,7.1957]
[1720798494041,25.9397,139.03,138.97,25.1845]
[1720798494250,52.1932,139.02,138.98,7.1952]
[1720798495044,27.9844,139.01,138.92,22.25735352]
[1720798495239,45.0,139.0,138.93,20.0]
[1720798495438,45.0,139.0,138.93,37.9944]
[1720798495748,7.1954,138.98,138.94,7.197]
[1720798496130,7.1949,138.99,138.94,7.197]
[1720798496326,7.1954,138.98,138.94,7.1973]
[1720798496531,7.1968,138.96,138.92,0.04265352]
[1720798496743,7.1968,138.95,138.92,0.04265352]
[1720798497030,10.0,138.98,138.92,0.04265352]
[1720798497031,7.1964,138.96,138.92,0.04265352]
[1720798497231,7.1969,138.95,138.92,0.04265352]
[1720798498142,15.0312,138.95,138.92,0.04265352]
[1720798498349,52.1977,138.94,138.92,0.04265352]
[1720798498553,45.0,138.94,138.92,0.04265352]
[1720798499242,7.1978,138.93,138.92,0.04265352]
[1720798499531,52.1978,138.93,138.92,0.04265352]
[1720798500354,15.0312,138.95,138.92,0.04265352]
[1720798500762,45.0,138.94,138.92,0.04265352]
[1720798501131,22.2281,138.95,138.92,0.04265352]
[1720798501328,41.8957,138.98,138.93,7.1975]
[1720798501533,31.9932,138.99,138.93,7.1975]
[1720798501952,31.9932,138.99,138.94,7.197]
[1720798502150,15.5302,138.99,138.93,17.9938]
[1720798503138,7.1948,138.99,138.95,17.9916]
[1720798503452,10.0,139.01,138.92,0.04265352]
[1720798503453,7.1954,138.98,138.93,7.1976]
[1720798503761,10.0,139.01,138.94,17.9927]
[1720798503956,7.1943,139.0,138.95,7.1963]
[1720798504148,10.0,139.01,138.94,17.9927]
[1720798504364,7.1956,138.98,138.94,17.9927]
[1720798504641,7.1958,138.97,138.92,7.24085352]
[1720798504844,10.0,138.99,138.92,0.04265352]
[1720798505042,52.1957,138.98,138.92,0.04265352]
[1720798505244,45.0,138.98,138.92,0.04265352]
[1720798505451,7.1966,138.96,138.92,0.04265352]
[1720798505846,45.0,138.98,138.93,17.9941]
[1720798506052,7.1943,139.0,138.92,0.04265352]
[1720798506262,7.1938,139.01,138.95,17.9917]
[1720798506459,7.1942,139.0,138.96,7.1961]
[1720798506756,7.1954,138.98,138.92,18.03785352]
[1720798506936,7.1954,138.98,138.93,7.1977]
[1720798507136,7.1965,138.96,138.92,18.03785352]
[1720798507834,7.1953,138.98,138.94,7.1972]
[1720798508034,10.0,139.01,138.94,17.9921]
[1720798508341,7.1945,139.0,138.96,7.1962]
[1720798508743,7.1937,139.01,138.97,7.1957]
[1720798508943,7.1937,139.01,138.96,17.99]